Cogmind - Beta 10.2 --- EXPLORER MODE // 2021.02.21 @ 16:02:32 Player: Analote Result: Self-destructed Performance ------------- Evolutions (2) 1000 Regions Visited (5) 1000 Robots Destroyed (10) 50 Value Destroyed (282) 282 Prototype IDs (0) 0 Alien Tech Used (0) 0 Bonus (0) 0 TOTAL SCORE: 2332 Bonus ------- None Cogmind --------- Core Integrity 523/550 Matter 214/300 Energy 250/250 System Corruption 0% Temperature Cool (18) Movement Walking (150) Ox1 Location -8/Materials Parts ------- > --- POWER (1) -------- Ion Engine > --- PROPULSION (2) --- Aluminum Leg Aluminum Leg > --- UTILITY (5) ------ Medium Storage Unit Terrain Scanner Targeting Computer ECM Suite Weapon Shielding > --- WEAPON (4) ------- Assault Rifle Light Assault Rifle Light Assault Rifle Rocket Launcher > --- INVENTORY (8) ---- Light Ion Engine Medium Laser Improved Light Cannon Peak State ------------ > --- POWER ------------ Ion Engine > --- PROPULSION ------- Aluminum Leg Aluminum Leg > --- UTILITY ---------- Medium Storage Unit Terrain Scanner Targeting Computer ECM Suite Weapon Shielding > --- WEAPON ----------- Assault Rifle Light Assault Rifle Light Assault Rifle Rocket Launcher > --- INVENTORY -------- Light Ion Engine Medium Laser [Rating: 13] Favorites ----------- Power Light Ion Engine Engine Light Ion Engine Propulsion Aluminum Leg Leg Aluminum Leg Utility Targeting Computer Device Terrain Scanner Storage Medium Storage Unit Processor Targeting Computer Protection Weapon Shielding Weapon Assault Rifle Energy Gun Medium Laser Ballistic Gun Assault Rifle Ballistic Cannon Improved Light Cannon Launcher Rocket Launcher Build | -11 -10 -10 -10 -9 -8 ------- Run | Scr Mat Min Exi Min Mat Slots Evolved 5 | . 1 . . . 4 Power . | . . . . . . Propulsion . | . . . . . . Utility 3 | . 1 . . . 2 Weapon 2 | . . . . . 2 Parts Attached 17 | 7 2 1 . . 7 Power 2 | 1 . . . . 1 Engine 2 | 1 . . . . 1 Core . | . . . . . . Reactor . | . . . . . . Propulsion 2 | 2 . . . . . Treads . | . . . . . . Leg 2 | 2 . . . . . Wheel . | . . . . . . Hover . | . . . . . . Flight . | . . . . . . Utility 5 | 2 1 . . . 2 Device 2 | . 1 . . . 1 Storage 1 | 1 . . . . . Processor 1 | 1 . . . . . Hackware . | . . . . . . Protection 1 | . . . . . 1 Artifact . | . . . . . . Weapon 8 | 2 1 1 . . 4 Energy Gun 1 | 1 . . . . . Energy Cannon . | . . . . . . Ballistic Gun 4 | 1 1 1 . . 1 Ballistic Cannon 1 | . . . . . 1 Launcher 2 | . . . . . 2 Special Weapon . | . . . . . . Impact Weapon . | . . . . . . Slashing Weapon . | . . . . . . Piercing Weapon . | . . . . . . Special Melee Weapon . | . . . . . . Unidentified Prototypes . | . . . . . . Parts Lost . | . . . . . . Power . | . . . . . . Propulsion . | . . . . . . Utility . | . . . . . . Weapon . | . . . . . . Highest Loss Streak . | . . . . . . Average Slot Usage (%) 99 | . 97 100 100 100 100 Engine 11 | . 12 12 12 12 8 Leg 24 | . 25 25 25 25 16 Device 12 | . 12 12 12 12 16 Storage 11 | . 12 12 12 12 8 Processor 11 | . 12 12 12 12 8 Energy Gun 3 | . 12 11 . . . Ballistic Gun 21 | . 9 13 25 25 25 Naked Turns . | . . . . . . Heaviest Build 24 | 14 16 16 15 15 24 Greatest Support 20 | 20 20 20 20 20 20 Greatest Overweight (x) 3 | 3 . . . . 1 Average Overweight (x) . | . . . . . 1 Largest Inventory Capacity 8 | 8 8 8 8 8 8 Average Capacity 7 | 7 8 8 8 8 8 Most Carried 6 | 3 3 6 6 6 5 Average Carried 4 | 1 2 3 6 6 2 Final Capacity 8 | 8 8 8 8 8 8 Final Carried 6 | 3 2 6 6 6 3 Class Distribution -------------------- 92% | Hacker-Mutant 7% | Hacker-Gunner Dominant Class ---------------- Hacker-Mutant | -10/Materials Hacker-Mutant | -10/Mines Hacker-Mutant | -10/Exiles Hacker-Mutant | -9/Mines Hacker-Gunner | -8/Materials Resources | -11 -10 -10 -10 -9 -8 ----------- Run | Scr Mat Min Exi Min Mat Matter Collected 459 | 114 . 212 . 48 85 Remotely . | . . . . . . Salvage Created 306 | . . 132 . 48 126 Parts 17 | . . 5 . 4 8 Haulers Intercepted . | . . . . . . Recyclers Shooed 1 | . . . . . 1 Parts Field Recycled . | . . . . . . Retrieved Matter . | . . . . . . Parts Self-Destructed . | . . . . . . Prevented . | . . . . . . Kills | -11 -10 -10 -10 -9 -8 ------- Run | Scr Mat Min Exi Min Mat Combat Hostiles Destroyed 10 | . . 4 . 3 3 Guns 8 | . . 4 . 3 1 AOE 2 | . . . . . 2 Classes Destroyed 2 | . . 2 . . . Swarmer 5 | . . 2 . 3 . Grunt 5 | . . 2 . . 3 Best Kill Streak 3 | . . 2 . 3 3 Combat Bots Only 3 | . . 2 . 3 3 Max Kills in Single Turn 2 | . . 1 . 1 2 Gunslinging . | . . . . . . Exploded 2 | . . . . . 2 Melee . | . . . . . . Uniques/NPCs Destroyed . | . . . . . . Combat | -11 -10 -10 -10 -9 -8 -------- Run | Scr Mat Min Exi Min Mat Damage Taken 449 | . 9 126 . 102 212 Core 68 | . . 23 . 18 27 Absorbed by Shields . | . . . . . . Core Remaining (%) 91 | 100 . . . 83 . Volleys Fired 44 | . 3 11 8 12 10 Largest 4 | . 2 2 1 1 4 Hottest 99 | . 70 70 20 20 99 Shots Fired 79 | . 5 21 8 12 33 Gun 76 | . 5 21 8 12 30 Cannon 1 | . . . . . 1 Launcher 2 | . . . . . 2 Special . | . . . . . . Kinetic 64 | . 2 11 8 12 31 Thermal 13 | . 3 10 . . . Explosive 2 | . . . . . 2 Electromagnetic . | . . . . . . Robot Hit Streak 17 | . 5 15 . 3 17 Robot Miss Streak 1 | . . 1 . 1 1 Penetration Max . | . . . . . . Secondary Targets 1 | . . 1 . . . Max Gunslinging Chain 1 | . . 1 . . . Shots Hit Robots 61 | . 5 17 . 9 30 Core Hits 27 | . . 7 . 3 17 Critical Hits 2 | . . 1 . . 1 Critical Kills . | . . . . . . Critical Parts Destroyed 2 | . . 1 . . 1 Melee Attacks . | . . . . . . Impact . | . . . . . . Slashing . | . . . . . . Piercing . | . . . . . . Sneak Attacks . | . . . . . . Combat Hostiles . | . . . . . . Follow-up Attacks . | . . . . . . Damage Inflicted 832 | . 63 188 . 119 462 Guns 627 | . 63 188 . 119 257 Cannons 19 | . . . . . 19 Explosions 186 | . . . . . 186 Melee . | . . . . . . Ramming . | . . . . . . Kinetic 510 | . 27 88 . 119 276 Thermal 136 | . 36 100 . . . Explosive 186 | . . . . . 186 Electromagnetic . | . . . . . . Impact . | . . . . . . Slashing . | . . . . . . Piercing . | . . . . . . Highest Corruption . | . . . . . . Average Corruption . | . . . . . . Corruption Purged . | . . . . . . Overload Shots . | . . . . . . Overflow Damage 8 | . . . . . 8 Projectiles . | . . . . . . Explosions 8 | . . . . . 8 Melee . | . . . . . . Knockbacks . | . . . . . . Impact . | . . . . . . Kinetic . | . . . . . . Secondary . | . . . . . . Self-Inflicted Damage . | . . . . . . Shots . | . . . . . . Rammed . | . . . . . . Targets Rammed . | . . . . . . Kicked . | . . . . . . Crushed . | . . . . . . Highest Temperature 123 | . 28 123 . . 69 Average Temperature 41 | . 16 57 . . 28 Received Heat Transfer 303 | . 9 96 . . 198 Siege Activations . | . . . . . . Robots Corrupted . | . . . . . . Combat Hostiles . | . . . . . . Parts Fried . | . . . . . . Impact Corruptions . | . . . . . . Robots Melted . | . . . . . . Combat Hostiles . | . . . . . . Parts Melted . | . . . . . . Heat Transferred 407 | . 111 296 . . . Parts Sabotaged . | . . . . . . Parts Stolen . | . . . . . . Parts Stripped . | . . . . . . Power Chain Reactions . | . . . . . . Missiles Intercepted . | . . . . . . Alert | -11 -10 -10 -10 -9 -8 ------- Run | Scr Mat Min Exi Min Mat Peak Influence 114 | . 30 108 . 70 114 Initial 19 | . . 8 . . 19 Average 36 | . 2 51 . 33 59 Maximum Alert Level . | . . . . . . Low Security (%) 100 | 100 100 100 . 100 100 Level 1 . | . . . . . . Level 2 . | . . . . . . Level 3 . | . . . . . . Level 4 . | . . . . . . Level 5 . | . . . . . . High Security . | . . . . . . Max Security . | . . . . . . Squads Dispatched 1 | . . . . . 1 Investigation . | . . . . . . Extermination . | . . . . . . Reinforcement 1 | . . . . . 1 Assault . | . . . . . . Garrison . | . . . . . . Intercept . | . . . . . . Construction Impeded . | . . . . . . Haulers Reinforced . | . . . . . . Stealth | -11 -10 -10 -10 -9 -8 --------- Run | Scr Mat Min Exi Min Mat Distress Signals 2 | . . . . . 2 Communications Jammed . | . . . . . . Distress Signals . | . . . . . . Times Spotted 21 | . 3 4 . 3 11 Peak Tracking Total 6 | . 3 2 . 3 6 Tactical Retreats . | . . . . . . Traps | -11 -10 -10 -10 -9 -8 ------- Run | Scr Mat Min Exi Min Mat Traps Triggered 1 | . 1 . . . . Indirectly . | . . . . . . Trap Hack Attempts . | . . . . . . Triggered . | . . . . . . Disarmed . | . . . . . . Reprogrammed . | . . . . . . Reused . | . . . . . . Traps Extracted . | . . . . . . Installed . | . . . . . . Triggered . | . . . . . . Machines | -11 -10 -10 -10 -9 -8 ---------- Run | Scr Mat Min Exi Min Mat Machines Disabled 1 | . . . . . 1 Max in Single Turn 1 | . . . . . 1 Machines Sabotaged . | . . . . . . Garrisons Compromised . | . . . . . . Overloaded Fab Kills . | . . . . . . Fab Network Shutdowns . | . . . . . . Hacking | -11 -10 -10 -10 -9 -8 --------- Run | Scr Mat Min Exi Min Mat Machines Accessed 5 | . 1 . 4 . . Terminals 1 | . 1 . . . . Fabricators . | . . . . . . Repair Stations . | . . . . . . Recycling Units . | . . . . . . Scanalyzers . | . . . . . . Garrison Access . | . . . . . . Total Hacks 56 | . 7 . 49 . . Successful 53 | . 4 . 49 . . Failed 3 | . 3 . . . . Catastrophic . | . . . . . . Database Lockouts . | . . . . . . Manual 3 | . . . 3 . . Terminals 7 | . 7 . . . . Fabricators . | . . . . . . Repair Stations . | . . . . . . Recycling Units . | . . . . . . Scanalyzers . | . . . . . . Garrison Access . | . . . . . . Terminal Hacks 53 | . 4 . 49 . . Record 51 | . 2 . 49 . . Robot Analysis 1 | . 1 . . . . Zone Layout 1 | . 1 . . . . Fabricator Hacks . | . . . . . . Repair Station Hacks . | . . . . . . Recycling Unit Hacks . | . . . . . . Scanalyzer . | . . . . . . Garrison Access Hacks . | . . . . . . Unauthorized Hacks . | . . . . . . Terminals . | . . . . . . Fabricators . | . . . . . . Repair Stations . | . . . . . . Recycling Units . | . . . . . . Scanalyzers . | . . . . . . Garrison Access . | . . . . . . Data Cores Recovered . | . . . . . . Used . | . . . . . . Hacking Detections 1 | . 1 . . . . Full Trace Events . | . . . . . . Feedback Events . | . . . . . . Feedback Blocked . | . . . . . . Robot Schematics Acquired . | . . . . . . Robots Built . | . . . . . . Matter . | . . . . . . Time . | . . . . . . Total Robot Build Rating . | . . . . . . Part Schematics Acquired . | . . . . . . Parts Built . | . . . . . . Matter . | . . . . . . Time . | . . . . . . Total Part Build Rating . | . . . . . . Parts Repaired . | . . . . . . Time . | . . . . . . Parts Recycled . | . . . . . . Recycled Matter . | . . . . . . Retrieved Matter . | . . . . . . Retrieved Components . | . . . . . . Parts Scanalyzed . | . . . . . . Part Schematics Acquired . | . . . . . . Parts Damaged . | . . . . . . Bothacking | -11 -10 -10 -10 -9 -8 ------------ Run | Scr Mat Min Exi Min Mat Used RIF Installer . | . . . . . . Robots Hacked . | . . . . . . Non-combat . | . . . . . . Combat . | . . . . . . Robot Hacks Applied . | . . . . . . Relay Couplers Released . | . . . . . . Robots Rewired . | . . . . . . Allies Hacked . | . . . . . . Hacks Repelled . | . . . . . . Allies | -11 -10 -10 -10 -9 -8 -------- Run | Scr Mat Min Exi Min Mat Total Allies . | . . . . . . Largest Group . | . . . . . . Highest-Rated Group . | . . . . . . Highest-Rated Ally . | . . . . . . Total Orders . | . . . . . . Ally Attacks . | . . . . . . Total Damage . | . . . . . . Kills . | . . . . . . Allies Corrupted . | . . . . . . Allies Melted . | . . . . . . Intel | -11 -10 -10 -10 -9 -8 ------- Run | Scr Mat Min Exi Min Mat Robot Analysis Total 1 | . 1 . . . . Derelict Logs Recovered 1 | . . 1 . . . Drone Launches . | . . . . . . Drone Recoveries . | . . . . . . Exploration | -11 -10 -10 -10 -9 -8 ------------- Run | Scr Mat Min Exi Min Mat Turns Passed 1767 | 90 145 362 940 106 124 Spaces Moved 1323 | 52 112 271 771 69 48 Core 22 | 22 . . . . . Treads . | . . . . . . Legs 1301 | 30 112 271 771 69 48 Wheels . | . . . . . . Hover . | . . . . . . Flight . | . . . . . . Fastest Speed 50 | 50 120 120 120 120 150 Average Speed 121 | 119 120 120 120 120 150 Slowest Speed 200 | 200 120 120 120 120 150 Overloaded Moves . | . . . . . . Propulsion Burnouts . | . . . . . . Robots Hopped . | . . . . . . Cave-ins Triggered . | . . . . . . Exploration Rate (%) 34 | 3 20 58 92 26 8 Regions Visited 5 Branch Regions 3 Pre-discovered Areas 1 | . . . 1 . . Known Exits Taken 5 | 1 1 1 1 1 . Unknown Exits Taken . | . . . . . . Scrap Searched 1 | . . 1 . . . Spaces Dug . | . . . . . . Terrain Destroyed 6 | . . . . . 6 Melee . | . . . . . . Projectile . | . . . . . . AOE 6 | . . . . . 6 Terrain Rammed . | . . . . . . Walls Destroyed . | . . . . . . Machines Disabled . | . . . . . . Actions | -11 -10 -10 -10 -9 -8 --------- Run | Scr Mat Min Exi Min Mat Total 1421 | 80 117 286 778 80 80 Wait 25 | 12 . . . . 13 Move 1318 | 51 111 270 770 68 48 Hop . | . . . . . . Pick Up 16 | 10 1 4 . . 1 Fast Attach . | . . . . . . Attach 14 | 7 2 . . . 5 Detach 1 | . . . . . 1 Swap 3 | . . 1 . . 2 Drop . | . . . . . . Fire 44 | . 3 11 8 12 10 Melee . | . . . . . . Ram . | . . . . . . Kick . | . . . . . . Crush . | . . . . . . Escape Stasis . | . . . . . . Rewire . | . . . . . . Trap . | . . . . . . Miscellaneous . | . . . . . . Route ------- -11/Scrapyard -10/Materials -10/Mines (discovered 2 exits: *Mat / *Exi) -10/Exiles (discovered 2 exits: *Min x2) -9/Mines -8/Materials History --------- Turn | Location | Event 17 | -11/Scrapyard | Identified exit to Materials 17 | -11/Scrapyard | Discovered exit to Materials (range 14) 91 | -11/Scrapyard | Entered Materials 91 | -10/Materials | Evolved 1 slot: Utility x1 167 | -10/Materials | Identified exit to Mines 167 | -10/Materials | Discovered exit to Mines (range 13) 236 | -10/Materials | Entered Mines 307 | -10/Mines | Build established: Hacker-Mutant 309 | -10/Mines | Received a Rocket Launcher from a helpful Derelict 545 | -10/Mines | Identified exit to Materials 545 | -10/Mines | Discovered exit to Materials (range 7) 593 | -10/Mines | Deemed a non-threat by the Exiles lab entrance 593 | -10/Mines | Identified exit to Exiles 593 | -10/Mines | Discovered exit to Exiles (range 5) 598 | -10/Mines | Entered Exiles 599 | -10/Exiles | Identified exit to Mines 630 | -10/Exiles | Met 8R-AWN 649 | -10/Exiles | Met EX-HEX 708 | -10/Exiles | Met EX-DEC 734 | -10/Exiles | Visited The Gauntlet 898 | -10/Exiles | Met EX-BIN 1021 | -10/Exiles | Learned location of Zion (-7) 1538 | -10/Exiles | Entered Mines 1633 | -9/Mines | Identified exit to Materials 1633 | -9/Mines | Discovered exit to Materials (range 10) 1644 | -9/Mines | Entered Materials 1644 | -8/Materials | Evolved 4 slots: Utility x2, Weapon x2 1768 | -8/Materials | Self-destructed Last Messages --------------- 01734_ G-47 Trooper destroyed. 01734_ R-06 Scavenger collects Aluminum Leg. 01736_ U-05 Engineer lays Concrete. 01737_ U-05 Engineer builds a Wall. 01737_ U-05 Engineer lays Concrete. 01738_ R-06 Scavenger collects Aluminum Leg. 01739_ U-05 Engineer builds a Wall. 01742_ U-05 Engineer lays Concrete. 01742_ R-06 Scavenger collects Imp. Heat Sink. 01743_ U-05 Engineer lays Concrete. 01744_ U-05 Engineer builds a Wall. 01745_ U-05 Engineer lays Concrete. 01746_ R-06 Scavenger collects Imp. Heat Sink. 01747_ U-05 Engineer lays Concrete. 01749_ U-05 Engineer builds a Wall. 01750_ U-05 Engineer lays Concrete. 01755_ U-05 Engineer builds a Wall. 01756_ U-05 Engineer lays Concrete. 01758_ R-06 Scavenger collects Particle Gun. 01759_ U-05 Engineer lays Concrete. Map ----- +----------------------------------------------------+ | ???????????????????????????????????????? | | ???????????????????????????????????????? | | ???????????????????????????????????????? | | ???????????????????????????????????????? | | ???????????????????????????????????????? | | ???????????????????????????????????????? | | ???????????????????????????????????????? | | ???????????????????????????????????????? | | ???????????????????????????????????????? | | ????????????????????? ????????????????? | | ??????????????# [??? ???????????????? | | ?????????????? ? ???????????????? | | ?????????????+ "?" ???????????????? | | ?????????????? """ ??????????????? | | ?????????????? """ u???????????????? | | ??????????????# ##??????????????? | | ??????????????# % # ??????????????? | | ?????????????## g # ??????????????? | | ?????????? ??? %#????????#??????? | | ????????????#?# #???????????????? | | ???#??????????# #??????"????????? | | ??????????????# # ??????????????? | | ??????????????# g""" #?? ?????#??????? | | ??????????????# """ # ???????#??????? | | ??????????????# """ #??????? ???????? | | ??????????????#@ g r############????? | | ??????????????# a## """ """ #????? | | ??????????????# """ ## """ """ #????? | | ???????????#### """ # """ """ #????? | | ??????????## """ t# #?#??? | | ????????#??# + = #????? | | ???????????# # % #????? | | ????????#??# """ # #????? | | ?????#???#?# """ o # """T""" #???#? | | ???????????# """ ###########????? | | ???????????# [%##????#????????? | | ???????????# gg =#??????????????? | | ???????????# """ ???? ?#???????? | | ???????????# """ ??? ?#???????? | | ???????????# a """ ? ??????????? | | ??????????## ###???#????????? | | ???????????# #??????????????? | | ???????????# """ #?????#????????? | | ???????????# "?" #???? ???? ????? | | ???????????# "?" #??????????????? | | ???????????? ^ ??? ???????????????? | | ???????????????????????????????????????? | | ???????????????????????????????????????? | | ???????????????????????????????????????? | | ???????????????????????????????????????? | +----------------------------------------------------+ Best States ------------- Heat Dissipation 31 Energy Generation 10 Energy Capacity 250 Matter Stores 300 Matter Capacity 300 Sight Range 16 Terrain Scan Range 14 Terrain Scan Density 10 Resistance: KI 35 Resistance: TH 35 Resistance: EX 35 Resistance: EM 35 Resistance: I 35 Resistance: S 35 Resistance: P 35 Weapon Shielding 33 Evasion (%) 50 Targeting Accuracy 5 Offensive Hacking 20 Item Schematics ----------------- None Robot Schematics ------------------ None Fabricated ------------ Nothing Alien Tech Used ----------------- None Achievements -------------- None Challenges ------------ None Game ------ Seed BackupSwordCarapace Manual? 0 Play Time 00:12:56 Cumulative 11.3 hours Start 2021.02.21 @ 15:49:00 End 2021.02.21 @ 16:02:32 Sessions 1 Manual Loads 0 Difficulty Explorer Special Mode None Game No. 18 Rogue 0 Adventurer 0 Explorer 18 Win Type - Total 0 Types 0/0/0/0/0/0/0/0/0 Lore% 19 Gallery% 25 Achievement% 25 Wizard Run 0 Options --------- ASCII 0 Keyboard 0 Movement Mouse Keybinds 0 Fullscreen 2 Font 12/Terminus Map View 83x54 Tactical HUD 1 Map Filters NONE Filters NONE Steam 1 RUN: 1c432c5c-46a8-4fb8-840e-8d58f76c5465